bitfinex/quotes_BTCUSD_20241023
["timestamp","ask_amount","ask_price","bid_price","bid_amount"]
[1729721235395,0.000824,66510.0,66509.0,0.01222607]
[1729721235626,0.000824,66510.0,66509.0,0.01222613]
[1729721236082,0.000824,66510.0,66508.0,0.11126218]
[1729721236290,0.000824,66510.0,66509.0,0.01222613]
[1729721239864,0.000824,66510.0,66509.0,0.16258113]
[1729721245081,0.000824,66510.0,66509.0,0.33338113]
[1729721246388,0.023,66512.0,66511.0,0.26161318]
[1729721246611,0.023,66512.0,66511.0,0.27383931]
[1729721246852,0.023,66512.0,66511.0,0.27383813]
[1729721248394,0.005,66518.0,66517.0,0.150337]
[1729721248632,0.028,66518.0,66517.0,0.27382413]
[1729721249835,0.028,66518.0,66517.0,0.36622413]
[1729721251735,0.028,66518.0,66517.0,0.01222495]
[1729721253981,0.005,66516.0,66513.0,0.22595636]
[1729721254190,0.023,66515.0,66513.0,0.22595636]
[1729721254404,0.028,66516.0,66513.0,0.22595636]
[1729721254616,0.028,66516.0,66514.0,0.00752329]
[1729721254832,0.005,66515.0,66509.0,0.00280873]
[1729721255044,0.005,66515.0,66510.0,0.01222611]
[1729721255045,0.023,66514.0,66510.0,0.01222611]
[1729721255261,0.023,66514.0,66511.0,0.01222611]
[1729721255487,0.023,66514.0,66512.0,0.01222611]
[1729721255729,0.023,66514.0,66513.0,0.01222611]
[1729721257755,0.023,66514.0,66513.0,0.01222622]
[1729721261554,0.023,66514.0,66513.0,0.01222593]
[1729721261769,0.028,66515.0,66513.0,0.01222593]
[1729721261978,0.028,66515.0,66514.0,0.01222593]
[1729721265073,0.028,66515.0,66511.0,0.15035]
[1729721265297,0.028,66515.0,66514.0,0.00470227]
[1729721265509,0.028,66515.0,66512.0,0.01692818]
[1729721265734,0.028,66515.0,66514.0,0.00752364]
[1729721265941,0.028,66515.0,66514.0,0.01222591]
[1729721269851,0.2059,66515.0,66514.0,0.01222591]
[1729721270057,0.1107,66515.0,66514.0,0.01222591]
[1729721270470,0.028,66515.0,66514.0,0.01222591]
[1729721272997,0.028824,66515.0,66514.0,0.01222591]
[1729721273847,0.028824,66515.0,66514.0,0.16256991]
[1729721276383,0.028824,66515.0,66514.0,0.1625689]
[1729721278276,0.028824,66515.0,66514.0,0.0122249]
[1729721278742,0.179166,66515.0,66514.0,0.0122249]
[1729721278984,0.028824,66515.0,66514.0,0.0122249]
[1729721279496,0.155351,66511.0,66510.0,0.001648]
[1729721279710,0.49017461,66511.0,66510.0,0.001648]
[1729721279966,0.40144124,66511.0,66510.0,0.00635102]
[1729721280169,0.58427445,66511.0,66510.0,0.00635102]
[1729721280392,0.60680342,66511.0,66510.0,0.001648]
[1729721280604,0.87377194,66511.0,66510.0,0.001648]
[1729721280815,0.78363233,66511.0,66510.0,0.001648]
[1729721281030,0.89626917,66511.0,66510.0,0.001648]
[1729721281248,0.78363233,66511.0,66510.0,0.001648]
[1729721281438,0.87370845,66511.0,66510.0,0.001648]
[1729721282370,0.61731699,66511.0,66510.0,0.001648]
[1729721282803,0.684853,66511.0,66510.0,0.001648]
[1729721283024,0.68485316,66511.0,66510.0,0.001648]
[1729721283666,0.61731699,66511.0,66510.0,0.001648]
[1729721283856,0.68485316,66511.0,66510.0,0.001648]
[1729721284101,0.61957212,66511.0,66510.0,0.001648]
[1729721284513,0.50830994,66511.0,66510.0,0.001648]
[1729721287347,0.18075894,66511.0,66510.0,0.001648]
[1729721287572,0.00725513,66511.0,66510.0,0.11291018]
[1729721287798,0.00725513,66511.0,66510.0,0.26326318]
[1729721288040,0.00725513,66511.0,66510.0,0.152001]
[1729721288269,0.00725513,66511.0,66510.0,0.33946318]
[1729721289162,0.03025513,66511.0,66510.0,0.35168906]
[1729721289777,0.03025513,66511.0,66510.0,0.24042688]
[1729721290414,0.03025513,66511.0,66510.0,0.228201]
[1729721290617,0.03025513,66511.0,66510.0,0.24042678]
[1729721291463,0.02525513,66511.0,66510.0,0.24042678]
[1729721292858,0.03025513,66511.0,66510.0,0.24042678]
[1729721293060,0.028,66511.0,66510.0,0.24042678]
[1729721293912,0.028,66511.0,66510.0,0.23572449]
[1729721294125,0.028,66511.0,66510.0,0.24042667]
[1729721296477,0.028,66511.0,66510.0,0.09007367]
[1729721296684,0.028,66511.0,66510.0,0.01387367]
[1729721301846,0.028,66511.0,66510.0,0.001648]
[1729721302061,0.028,66511.0,66510.0,0.01387431]
[1729721307610,0.028824,66511.0,66510.0,0.01387431]
[1729721308549,0.028824,66511.0,66510.0,0.16422731]
[1729721309241,0.028824,66511.0,66510.0,0.0138743]
[1729721310808,0.028824,66511.0,66510.0,0.3395273]
[1729721312384,0.028824,66511.0,66510.0,0.45068946]
[1729721313104,0.028824,66511.0,66510.0,0.45068896]
[1729721315430,0.000824,66511.0,66510.0,0.49503061]
[1729721315691,0.000824,66518.0,66517.0,0.150337]
[1729721315922,0.000824,66518.0,66517.0,0.76070526]
[1729721316136,0.000824,66518.0,66517.0,0.71569093]
[1729721316355,0.000824,66518.0,66517.0,0.79321243]
[1729721316579,0.000824,66518.0,66517.0,0.71346513]
[1729721316813,0.000824,66518.0,66517.0,0.72568727]
[1729721317509,0.000824,66518.0,66517.0,0.77065894]
[1729721317725,0.000824,66518.0,66517.0,0.87065894]
[1729721318385,0.000824,66518.0,66517.0,0.95060647]
[1729721319519,0.000824,66518.0,66517.0,0.78087005]
[1729721320472,0.000824,66518.0,66517.0,0.78086994]
[1729721320687,0.000824,66518.0,66517.0,0.78286994]
[1729721320908,0.000824,66518.0,66517.0,0.78086994]
[1729721321549,0.000824,66518.0,66517.0,0.9544917]
[1729721324230,0.000824,66518.0,66517.0,0.9564917]
[1729721324475,0.000824,66518.0,66517.0,0.94226967]
[1729721324718,0.000824,66518.0,66517.0,0.95919146]
[1729721325162,0.000824,66518.0,66517.0,0.95449095]
[1729721325596,0.000824,66518.0,66517.0,0.96050195]
[1729721327627,0.000824,66518.0,66517.0,0.96250195]
[1729721327849,0.000824,66518.0,66517.0,0.96050195]
[1729721328093,0.000824,66518.0,66517.0,0.78688019]
[1729721328331,0.000824,66518.0,66517.0,0.77465891]
[1729721328541,0.000824,66518.0,66517.0,0.78688014]
[1729721331304,0.000824,66518.0,66517.0,0.77586914]
[1729721331543,0.000824,66518.0,66517.0,0.78086914]
[1729721331761,0.000824,66518.0,66517.0,0.77586914]
[1729721332417,0.000824,66518.0,66517.0,0.78086914]
[1729721333123,0.000824,66518.0,66517.0,0.27144357]
[1729721335871,0.000824,66518.0,66517.0,0.27144443]
[1729721336129,0.000824,66518.0,66517.0,0.26392314]
[1729721336345,0.000824,66518.0,66517.0,0.27144443]
[1729721337436,0.000824,66518.0,66517.0,0.44506619]
[1729721339256,0.000824,66518.0,66517.0,0.67102255]
[1729721339476,0.000824,66518.0,66517.0,0.4328441]
[1729721339691,0.000824,66518.0,66517.0,0.44506618]
[1729721340349,0.000824,66518.0,66517.0,0.38255726]
[1729721340794,0.000824,66518.0,66517.0,0.27144442]
[1729721341251,0.000824,66518.0,66517.0,0.38255726]
[1729721345689,0.000824,66518.0,66517.0,0.83287391]
[1729721345899,0.000824,66519.0,66518.0,0.444035]
[1729721346113,0.000824,66519.0,66518.0,0.60676007]
[1729721347884,0.000824,66519.0,66518.0,0.59453881]
[1729721348140,0.000823,66533.0,66532.0,0.155303]
[1729721348392,0.0016639,66534.0,66533.0,0.265301]
[1729721348628,0.001704,66539.0,66535.0,0.265296]
[1729721348874,0.005,66553.0,66541.0,0.005]
[1729721349093,0.005,66553.0,66552.0,0.150258]
[1729721349340,0.005,66553.0,66552.0,0.1624792]
[1729721349525,0.1077,66555.0,66554.0,0.150253]
[1729721349773,0.1077,66555.0,66554.0,0.1624742]
[1729721353161,0.1077,66555.0,66554.0,0.15495346]
[1729721353374,0.1077,66555.0,66554.0,0.00470046]
[1729721353590,0.257951,66555.0,66554.0,0.00470046]
[1729721354012,0.005,66552.0,66546.0,0.22595636]
[1729721354239,0.023,66551.0,66547.0,0.00469967]
[1729721354449,0.023,66551.0,66548.0,0.00469967]
[1729721354655,0.023,66551.0,66546.0,0.22595636]
[1729721354656,0.023,66551.0,66549.0,0.00469967]
[1729721354879,0.023,66552.0,66550.0,0.00469967]
[1729721355105,0.15050381,66551.0,66546.0,0.00752074]
[1729721355311,0.023,66549.0,66547.0,0.00469973]
[1729721355543,0.023,66549.0,66548.0,0.00469973]
[1729721356230,0.023,66550.0,66548.0,0.00469973]
[1729721356432,0.023,66550.0,66546.0,0.22595636]
[1729721356433,0.150261,66551.0,66549.0,0.00469973]
[1729721356650,0.150258,66552.0,66550.0,0.00469973]
[1729721356868,0.150258,66552.0,66551.0,0.00469973]
[1729721357502,0.150258,66552.0,66547.0,0.150269]
[1729721357709,0.150258,66552.0,66548.0,0.00469972]
[1729721357934,0.150258,66552.0,66549.0,0.00469972]
[1729721358188,0.150258,66552.0,66550.0,0.00469972]
[1729721358396,0.173258,66552.0,66551.0,0.00469972]
[1729721359710,0.023,66552.0,66551.0,0.00469972]
[1729721362174,0.023,66554.0,66553.0,0.150253]
[1729721362398,0.023,66554.0,66553.0,0.15495272]
[1729721363319,0.02232754,66554.0,66553.0,0.15495272]
[1729721363755,0.02232754,66554.0,66553.0,0.00469972]
[1729721363978,0.02232754,66554.0,66553.0,0.15495572]
[1729721364202,0.02214659,66554.0,66553.0,0.15495572]
[1729721364438,0.02214659,66554.0,66553.0,0.150256]
[1729721364660,0.02214659,66554.0,66553.0,0.00469945]
[1729721366626,0.02214659,66554.0,66553.0,0.15495545]
[1729721367314,0.02296959,66554.0,66553.0,0.15495545]
[1729721368413,0.02296959,66554.0,66553.0,0.00469945]
[1729721368626,0.02296959,66554.0,66553.0,0.15495545]
[1729721368844,0.02296959,66554.0,66553.0,0.15495544]
[1729721369055,0.02296959,66554.0,66553.0,0.00469944]
[1729721369487,0.02296959,66554.0,66553.0,0.15495544]
[1729721369925,0.02296959,66554.0,66553.0,0.00469944]
[1729721373433,0.02296959,66554.0,66553.0,0.01221856]
[1729721376103,0.02296959,66554.0,66552.0,0.150258]
[1729721376324,0.02296959,66554.0,66553.0,0.01221855]
[1729721377257,0.02296959,66554.0,66553.0,0.16247455]
[1729721377476,0.02296959,66554.0,66553.0,0.01221855]
[1729721380181,0.02296959,66554.0,66553.0,0.00916519]
[1729721380403,0.02296959,66554.0,66553.0,0.01386468]
[1729721382874,0.02296959,66554.0,66553.0,0.16412068]
[1729721391416,0.02296959,66554.0,66553.0,0.151902]
[1729721392093,0.02296959,66554.0,66553.0,0.16412067]
[1729721395136,0.02296959,66554.0,66553.0,0.16412057]
[1729721398550,0.02296959,66554.0,66553.0,0.15942112]
[1729721398764,0.02296959,66554.0,66553.0,0.16412057]
[1729721401255,0.000823,66554.0,66553.0,0.27517099]
[1729721401488,0.000823,66554.0,66553.0,0.25200695]
[1729721401720,0.000823,66554.0,66553.0,0.26422463]
[1729721404435,0.000823,66554.0,66553.0,0.26121968]
[1729721405118,0.174076,66554.0,66553.0,0.01386368]
[1729721405358,0.174076,66554.0,66553.0,0.00634511]
[1729721405848,0.174076,66554.0,66553.0,0.01386479]
[1729721406505,0.174076,66554.0,66553.0,0.00634511]
[1729721406933,0.174076,66554.0,66553.0,0.01386487]
[1729721407596,0.023823,66554.0,66553.0,0.01386487]
[1729721407812,0.023823,66554.0,66553.0,0.00634511]
[1729721408032,0.023823,66554.0,66553.0,0.01386488]
[1729721408254,0.174076,66554.0,66553.0,0.01386488]
[1729721408684,0.023823,66554.0,66553.0,0.01386488]
[1729721409841,0.174076,66554.0,66553.0,0.01386488]
[1729721412363,0.174076,66554.0,66553.0,0.01386515]
[1729721412580,0.023823,66554.0,66553.0,0.01386515]
[1729721415412,0.023823,66554.0,66553.0,0.01386525]
[1729721418957,0.023823,66554.0,66553.0,0.001646]
[1729721419173,0.023823,66554.0,66553.0,0.01386527]
[1729721420776,0.023823,66554.0,66553.0,0.16412127]
[1729721421411,0.023823,66554.0,66553.0,0.01386527]
[1729721421613,0.023823,66554.0,66553.0,0.16412127]
[1729721422446,0.023823,66554.0,66553.0,0.151902]
[1729721422893,0.023823,66554.0,66553.0,0.1566017]
[1729721423123,0.023823,66554.0,66553.0,0.16412122]
[1729721423337,0.023823,66554.0,66553.0,0.17164075]
[1729721426171,0.023823,66554.0,66553.0,0.15942152]
[1729721426382,0.023823,66554.0,66553.0,0.16694095]
[1729721426626,0.023823,66554.0,66553.0,0.17164059]
[1729721427070,0.023823,66554.0,66553.0,0.02138459]
[1729721427495,0.023823,66554.0,66553.0,0.17164059]
[1729721428555,0.023823,66554.0,66553.0,0.16412107]
[1729721429340,0.023823,66554.0,66553.0,0.01386507]
[1729721429763,0.023823,66554.0,66553.0,0.001646]
[1729721429982,0.023823,66554.0,66553.0,0.01386515]
[1729721430398,0.023823,66554.0,66553.0,0.16412115]
[1729721431889,0.023823,66554.0,66553.0,0.01386515]
[1729721432531,0.023823,66554.0,66553.0,0.16412115]
[1729721436377,0.023823,66554.0,66553.0,0.01386515]
[1729721436578,0.023823,66554.0,66553.0,0.16412115]
[1729721436794,0.023823,66554.0,66553.0,0.01386515]
[1729721437013,0.023823,66554.0,66553.0,0.0251288]
[1729721443144,0.44063023,66554.0,66553.0,0.0251288]
[1729721443354,0.68462606,66554.0,66553.0,0.00634567]
[1729721443568,0.98456601,66554.0,66553.0,0.00634567]
[1729721443793,1.00509796,66554.0,66553.0,0.001646]
[1729721443999,0.89404754,66554.0,66553.0,0.001646]
[1729721444427,0.78338782,66554.0,66553.0,0.001646]
[1729721445078,0.78138782,66554.0,66553.0,0.001646]
[1729721445300,0.78338782,66554.0,66553.0,0.001646]
[1729721445523,0.99404754,66554.0,66553.0,0.001646]
[1729721445741,0.88138782,66554.0,66553.0,0.001646]
[1729721446182,0.99404754,66554.0,66553.0,0.001646]
[1729721447041,0.99604754,66554.0,66553.0,0.001646]
[1729721447456,0.88338782,66554.0,66553.0,0.001646]
[1729721448969,0.88138782,66554.0,66553.0,0.001646]
[1729721451483,0.97145887,66554.0,66553.0,0.001646]
[1729721454358,0.88138782,66554.0,66553.0,0.001646]
[1729721455484,0.71503023,66554.0,66553.0,0.001646]
[1729721457670,0.78254875,66554.0,66553.0,0.001646]
[1729721460330,0.68314875,66554.0,66553.0,0.001646]
[1729721460997,0.60814875,66554.0,66553.0,0.001646]
[1729721461277,0.60814448,66554.0,66553.0,0.001646]
[1729721461491,0.54063023,66554.0,66553.0,0.001646]
[1729721477317,0.53563023,66554.0,66553.0,0.001646]
[1729721477543,0.42957981,66554.0,66553.0,0.00634614]
[1729721484116,0.023823,66554.0,66553.0,0.10294614]
[1729721484330,0.174076,66554.0,66553.0,0.18444614]
[1729721484568,0.174076,66554.0,66553.0,0.10294614]
[1729721484753,0.174076,66554.0,66553.0,0.00634614]
[1729721486996,0.174076,66554.0,66553.0,0.00634584]
[1729721487211,0.43563023,66554.0,66553.0,0.00634584]
[1729721490205,0.43563023,66554.0,66553.0,0.001646]
[1729721490423,0.43563023,66554.0,66553.0,0.00634597]
[1729721492919,0.43788411,66554.0,66553.0,0.00634597]
[1729721493770,0.43788411,66554.0,66553.0,0.001646]
[1729721493988,0.43788411,66554.0,66553.0,0.00634597]
[1729721497369,0.43788411,66554.0,66553.0,0.001646]
[1729721497594,0.43788411,66554.0,66553.0,0.00634597]
[1729721497821,0.43788411,66554.0,66553.0,0.001646]
[1729721498047,0.43788411,66554.0,66553.0,0.00634597]
[1729721500985,0.44288411,66554.0,66553.0,0.00634597]
[1729721501216,0.48794815,66554.0,66553.0,0.001646]
[1729721501438,0.44288411,66554.0,66553.0,0.00634604]
[1729721502588,0.48795841,66554.0,66553.0,0.00634604]
[1729721503524,0.44288411,66554.0,66553.0,0.00634604]
[1729721504251,0.48796186,66554.0,66553.0,0.00634604]
[1729721504481,0.44288411,66554.0,66553.0,0.00634604]
[1729721504915,0.44288411,66554.0,66553.0,0.001646]
[1729721505135,0.44288411,66554.0,66553.0,0.00634601]
[1729721505356,0.51048017,66554.0,66553.0,0.00634601]
[1729721505780,0.44288411,66554.0,66553.0,0.00634601]
[1729721505988,0.51048017,66554.0,66553.0,0.00634601]
[1729721506669,0.51051578,66554.0,66553.0,0.00634601]
[1729721507108,0.44288411,66554.0,66553.0,0.00634601]
[1729721507563,0.51051578,66554.0,66553.0,0.00634601]
[1729721508002,0.44288411,66554.0,66553.0,0.00634601]
[1729721508220,0.51051578,66554.0,66553.0,0.00634601]
[1729721508876,0.44288411,66554.0,66553.0,0.001646]
[1729721509095,0.44288411,66554.0,66553.0,0.00634599]
[1729721509943,0.51051578,66554.0,66553.0,0.00634599]
[1729721510654,0.7093375,66554.0,66553.0,0.001646]
[1729721513984,0.99928792,66554.0,66553.0,0.001646]
[1729721514198,1.05522085,66554.0,66553.0,0.001646]
[1729721515221,0.005,66542.0,66541.0,0.22595636]
[1729721515427,0.99493904,66542.0,66541.0,0.22595636]
[1729721515654,1.14544285,66542.0,66541.0,0.22595636]
[1729721515861,1.19132861,66542.0,66541.0,0.22595636]
[1729721516054,0.353901,66533.0,66532.0,0.22595636]
[1729721516267,0.8720023,66533.0,66532.0,0.22595636]
[1729721516477,0.61545523,66533.0,66532.0,0.22595636]
[1729721516897,0.37381492,66533.0,66532.0,0.22595636]
[1729721517106,0.32880481,66533.0,66532.0,0.22595636]
[1729721517337,0.023,66529.0,66528.0,0.150312]
[1729721517561,0.15550381,66533.0,66528.0,0.150312]
[1729721517562,0.023,66531.0,66528.0,0.248712]
[1729721517957,0.023,66531.0,66529.0,0.08210136]
[1729721518190,0.023,66531.0,66530.0,0.00470136]
[1729721518424,0.023,66531.0,66529.0,0.227708]
[1729721518655,0.023,66531.0,66529.0,0.0774]
[1729721520614,0.023,66531.0,66529.0,0.079048]
[1729721521251,0.173305,66531.0,66529.0,0.079048]
[1729721522335,0.023,66531.0,66529.0,0.079048]
[1729721522554,0.173306,66531.0,66529.0,0.079048]
[1729721524757,0.023,66531.0,66530.0,0.22595636]
[1729721524958,0.023,66531.0,66529.0,0.079048]
[1729721525177,0.173306,66531.0,66529.0,0.079048]
[1729721525382,0.023,66531.0,66529.0,0.079048]
[1729721525837,0.173308,66530.0,66529.0,0.079048]
[1729721530753,0.32881181,66530.0,66529.0,0.001648]
[1729721530954,0.45342403,66530.0,66529.0,0.001648]
[1729721531760,0.45542403,66530.0,66529.0,0.001648]
[1729721532007,0.63682403,66530.0,66529.0,0.001648]
[1729721532234,0.84787445,66530.0,66529.0,0.001648]
[1729721532393,0.73482403,66530.0,66529.0,0.001648]
[1729721534986,0.73682403,66530.0,66529.0,0.001648]
[1729721539189,0.73482403,66530.0,66529.0,0.001648]
[1729721539801,0.73682403,66530.0,66529.0,0.001648]
[1729721540653,0.84787445,66530.0,66529.0,0.001648]
[1729721540875,0.85787445,66530.0,66529.0,0.001648]
[1729721541096,0.85787445,66530.0,66513.0,0.22595636]
[1729721541097,0.005,66516.0,66513.0,0.22595636]
[1729721541297,0.005,66516.0,66511.0,0.00036005]
[1729721541298,0.84234365,66516.0,66514.0,0.22595636]
[1729721541914,0.73329323,66516.0,66511.0,0.00036005]
[1729721542122,0.73129323,66516.0,66511.0,0.00036005]
[1729721542329,0.84434365,66516.0,66511.0,0.00036005]
[1729721542536,0.75208292,66516.0,66511.0,0.00036005]
[1729721543853,0.73129323,66516.0,66511.0,0.00036005]
[1729721544085,0.53989323,66516.0,66511.0,0.00036005]
[1729721552744,0.54189323,66516.0,66511.0,0.00036005]
[1729721553156,0.62039323,66516.0,66511.0,0.00036005]
[1729721555376,0.61839323,66516.0,66511.0,0.00036005]
[1729721555584,0.62039323,66516.0,66511.0,0.00036005]
[1729721555807,0.71239323,66516.0,66511.0,0.00036005]
[1729721556247,0.85587219,66516.0,66511.0,0.00036005]
[1729721558767,0.96692261,66516.0,66511.0,0.00036005]
[1729721558964,0.97692261,66516.0,66511.0,0.00036005]
[1729721559189,1.0218025,66516.0,66511.0,0.00036005]
[1729721559368,1.04424244,66516.0,66511.0,0.00036005]
[1729721559600,0.97692261,66516.0,66511.0,0.00036005]
[1729721560215,0.72239323,66516.0,66511.0,0.00036005]
[1729721560368,0.7712467,66516.0,66511.0,0.00036005]
[1729721562599,0.72636202,66516.0,66511.0,0.00036005]
[1729721569113,0.54989323,66516.0,66511.0,0.00036005]
[1729721569430,0.59478621,66516.0,66511.0,0.00036005]
[1729721569864,0.43884281,66516.0,66511.0,0.00036005]
[1729721570093,0.54989323,66516.0,66511.0,0.00036005]
[1729721571785,0.54989323,66516.0,66515.0,0.100348]
[1729721571786,0.42884281,66516.0,66515.0,0.100348]
[1729721571995,0.43109819,66516.0,66515.0,0.100348]
[1729721574413,0.44109819,66516.0,66515.0,0.100348]
[1729721575778,0.47556994,66516.0,66515.0,0.100348]
[1729721575987,0.47756994,66516.0,66515.0,0.100348]
[1729721576198,0.47556994,66516.0,66515.0,0.100348]
[1729721576575,0.47756994,66516.0,66515.0,0.100348]
[1729721577047,0.47556994,66516.0,66515.0,0.100348]
[1729721577726,0.52246292,66516.0,66515.0,0.100348]
[1729721578183,0.52046292,66516.0,66515.0,0.100348]
[1729721578903,0.52246292,66516.0,66515.0,0.100348]
[1729721579321,0.51246292,66516.0,66515.0,0.100348]
[1729721579531,0.52246292,66516.0,66515.0,0.100348]
[1729721579738,0.52046292,66516.0,66515.0,0.100348]
[1729721580573,0.47556994,66516.0,66515.0,0.100348]
[1729721582516,0.54290941,66516.0,66515.0,0.100348]
[1729721584426,0.50843766,66516.0,66515.0,0.100348]
[1729721584619,0.44109819,66516.0,66515.0,0.100348]
[1729721585028,0.50864461,66516.0,66515.0,0.100348]
[1729721585451,0.44109819,66516.0,66515.0,0.100348]
[1729721585656,0.607355,66516.0,66515.0,0.100348]
[1729721586403,0.69714096,66516.0,66515.0,0.100348]
[1729721596816,0.68714096,66516.0,66515.0,0.100348]
[1729721597016,0.69714096,66516.0,66515.0,0.100348]
[1729721598714,0.68714096,66516.0,66515.0,0.100348]
[1729721598914,0.69714096,66516.0,66515.0,0.100348]
[1729721600815,0.607355,66516.0,66515.0,0.100348]
[1729721601218,0.70995777,66516.0,66515.0,0.100348]
[1729721601727,0.687436,66516.0,66515.0,0.100348]
[1729721601946,0.19763903,66516.0,66515.0,0.10505087]
[1729721602169,0.00225538,66516.0,66515.0,0.34061705]
[1729721602384,0.00225538,66516.0,66515.0,0.20155211]
[1729721603231,0.150338,66517.0,66515.0,0.09157505]
[1729721603451,0.173338,66517.0,66516.0,0.19132705]
[1729721606404,0.173338,66517.0,66516.0,0.18380287]
[1729721611568,0.023,66519.0,66517.0,0.0998]
[1729721611772,0.150333,66519.0,66518.0,0.1791]
[1729721611922,0.023,66519.0,66518.0,0.1791]
[1729721612132,0.150319,66525.0,66521.0,0.150326]
[1729721612335,0.150319,66525.0,66517.0,0.11105042]
[1729721612336,0.000824,66529.0,66524.0,0.0998]
[1729721612533,0.150319,66525.0,66524.0,0.0998]
[1729721612735,0.26237823,66529.0,66524.0,0.10450188]
[1729721612963,0.150318,66526.0,66524.0,0.0998]
[1729721613283,0.150317,66526.0,66524.0,0.0998]
[1729721613434,0.023,66525.0,66524.0,0.0998]
[1729721613634,0.173319,66525.0,66524.0,0.1045018]
[1729721615114,0.023,66528.0,66525.0,0.150318]
[1729721615320,0.023,66528.0,66527.0,0.0793]
[1729721615559,0.173312,66528.0,66527.0,0.0793]
[1729721617159,0.000824,66529.0,66527.0,0.0793]
[1729721617373,0.174134,66529.0,66527.0,0.0793]
[1729721621365,0.000824,66529.0,66527.0,0.0793]
[1729721621569,0.000824,66529.0,66528.0,0.0998]
[1729721621779,0.023824,66529.0,66528.0,0.250112]
[1729721621978,0.023824,66529.0,66528.0,0.25481339]
[1729721622205,0.000824,66529.0,66528.0,0.25481339]
[1729721624820,0.000824,66529.0,66528.0,0.25481326]
[1729721628458,0.000824,66529.0,66528.0,0.10450126]
[1729721628900,0.000824,66529.0,66528.0,0.25481326]
[1729721636750,0.000824,66529.0,66528.0,0.250112]
[1729721637195,0.000824,66529.0,66528.0,0.25481326]
[1729721639242,0.000824,66529.0,66528.0,0.26233527]
[1729721640855,0.000824,66529.0,66528.0,0.26398327]
[1729721642155,0.000824,66529.0,66528.0,0.27525008]
[1729721644143,0.000824,66529.0,66528.0,0.12493808]
[1729721646873,0.000824,66529.0,66528.0,0.101448]
[1729721647080,0.000824,66529.0,66528.0,0.11271984]
[1729721647255,0.000824,66529.0,66528.0,0.12494311]
[1729721647862,0.000824,66529.0,66528.0,0.11367127]
[1729721649315,0.000824,66529.0,66528.0,0.45533967]
[1729721649542,0.000824,66529.0,66528.0,0.56338411]
[1729721649783,0.151134,66529.0,66528.0,0.19097127]
[1729721650013,0.000824,66529.0,66528.0,0.19097127]
[1729721652324,0.000824,66529.0,66528.0,0.178748]
[1729721652528,0.000824,66529.0,66528.0,0.19097115]
[1729721652974,0.000824,66529.0,66528.0,0.34128315]
[1729721654011,0.000824,66529.0,66528.0,0.34128313]
[1729721659047,0.000824,66529.0,66528.0,0.11367113]
[1729721659740,0.174134,66529.0,66528.0,0.01387113]
[1729721660005,0.174134,66529.0,66528.0,0.00917034]
[1729721660240,0.174134,66529.0,66528.0,0.00917046]
[1729721660458,0.174134,66529.0,66528.0,0.013872]
[1729721661172,0.023824,66529.0,66528.0,0.013872]
[1729721661410,0.174134,66529.0,66528.0,0.013872]
[1729721662305,0.151134,66529.0,66528.0,0.013872]
[1729721662566,0.174134,66529.0,66528.0,0.013872]
[1729721663020,0.000824,66529.0,66528.0,0.013872]
[1729721663724,0.000824,66529.0,66528.0,0.01387172]
[1729721665591,0.000824,66529.0,66528.0,0.16418372]
[1729721667498,0.000824,66529.0,66528.0,0.16418325]
[1729721669836,0.0009309,66529.0,66528.0,0.16418325]
[1729721670531,0.0009309,66529.0,66528.0,0.26008325]
[1729721670964,0.0009309,66529.0,66528.0,0.255382]
[1729721671182,0.0009309,66529.0,66528.0,0.26008322]
[1729721671660,0.0009309,66529.0,66528.0,0.24786]
[1729721671871,0.0009309,66529.0,66528.0,0.26008322]
[1729721678366,0.0009309,66529.0,66528.0,0.26008335]
[1729721682090,0.0009309,66529.0,66528.0,0.26008333]
[1729721682541,0.0009309,66529.0,66528.0,0.26008336]
[1729721685712,0.32474471,66529.0,66528.0,0.01387136]
[1729721685967,0.32474471,66529.0,66528.0,0.00634977]
[1729721685968,0.61489513,66529.0,66528.0,0.00634977]
[1729721686472,0.61489513,66529.0,66528.0,0.001648]
[1729721691143,0.65996004,66529.0,66528.0,0.001648]
[1729721692332,0.40554471,66529.0,66528.0,0.001648]
[1729721692535,0.17943471,66529.0,66528.0,0.001648]
[1729721692781,0.17943471,66529.0,66528.0,0.00634979]
[1729721692899,0.17943471,66529.0,66528.0,0.001648]
[1729721693521,0.17943471,66529.0,66528.0,0.01105138]
[1729721693906,0.17443471,66529.0,66528.0,0.01105138]
[1729721694080,0.17943471,66529.0,66528.0,0.01105138]
[1729721694258,0.17943471,66529.0,66528.0,0.00634969]
[1729721696927,0.32974471,66529.0,66528.0,0.001648]
[1729721697207,0.32974471,66529.0,66528.0,0.00634969]
[1729721698175,0.32974471,66529.0,66528.0,0.00634972]
[1729721700123,0.32974471,66529.0,66528.0,0.001648]
[1729721700323,0.32974471,66529.0,66528.0,0.00634968]
[1729721703496,0.32974471,66529.0,66528.0,0.001648]
[1729721703497,0.17443471,66529.0,66528.0,0.001648]
[1729721703715,0.17443471,66529.0,66528.0,0.00634973]
[1729721705568,0.17943471,66529.0,66528.0,0.00634973]
[1729721705793,0.32974471,66529.0,66528.0,0.00634973]
[1729721706998,0.32974471,66529.0,66528.0,0.001648]
[1729721707252,0.32974471,66529.0,66528.0,0.00634969]
[1729721709209,0.32974471,66529.0,66528.0,0.08154969]
[1729721710128,0.44079513,66529.0,66528.0,0.08154969]
[1729721710383,0.61669513,66529.0,66528.0,0.08154969]
[1729721710613,0.61669513,66529.0,66528.0,0.076848]
[1729721710614,0.99608626,66529.0,66528.0,0.076848]
[1729721710833,1.18720706,66529.0,66528.0,0.076848]
[1729721711046,1.05201005,66529.0,66528.0,0.076848]
[1729721711465,1.18714596,66529.0,66528.0,0.076848]
[1729721711707,1.05201005,66529.0,66528.0,0.076848]
[1729721711949,1.20636025,66529.0,66528.0,0.076848]
[1729721712399,1.34144052,66529.0,66528.0,0.076848]
[1729721712818,1.20622837,66529.0,66528.0,0.076848]
[1729721713221,1.34126448,66529.0,66528.0,0.076848]
[1729721713681,1.16030458,66529.0,66528.0,0.033621]
[1729721714314,0.78769993,66529.0,66528.0,0.033621]
[1729721714493,0.005,66519.0,66518.0,0.22595636]
[1729721714644,0.42883581,66519.0,66518.0,0.22595636]
[1729721715061,0.178337,66517.0,66515.0,0.001648]
[1729721715257,0.43989123,66517.0,66515.0,0.001648]